fUST/lending_fUST_20251004
["ID","MTS","AMOUNT","RATE_DAILY","PERIOD"]
[388972473,1759551048536,-500.0,0.00024931,9]
[388972474,1759551048545,-500.0,0.00024931,9]
[388972475,1759551048555,-972.66,0.00024931,9]
[388972476,1759551048564,-240.44946192,0.00024931,9]
[388972479,1759551129841,210.0,0.00028767,120]
[388972484,1759551214358,210.0,0.00028767,120]
[388972486,1759551438162,389.19,0.00018033,2]
[388972511,1759552119555,164.316241,0.00016438,2]
[388972782,1759552238246,-150.999999,0.00021,2]
[388972784,1759552238256,-715.30149202,0.00022605,2]
[388972786,1759552238265,-164.316241,0.00022783,2]
[388972787,1759552238274,-300.0,0.00023794,2]
[388972789,1759552238283,-21178.34031605,0.00023795,2]
[388972791,1759552238292,-164.0,0.00023863,11]
[388972793,1759552238301,-160.0,0.00024444,2]
[388972794,1759552238311,-913.00751709,0.00024457,2]
[388972796,1759552238319,-661.27731784,0.00024457,2]
[388972798,1759552238329,-856.14097867,0.00024457,2]
[388972800,1759552238338,-913.00751705,0.00024482,2]
[388972801,1759552238346,-913.00751705,0.00024507,2]
[388972802,1759552238355,-913.00751705,0.00024532,2]
[388972803,1759552238364,-250.0,0.00024542,2]
[388972804,1759552238373,-250.0,0.00024542,2]
[388972805,1759552238382,-250.0,0.00024542,2]
[388972806,1759552238391,-260.07757208,0.00024542,2]
[388972807,1759552238400,-505.21047232,0.00024542,2]
[388972808,1759552238409,-155.786338,0.00024542,2]
[388972809,1759552238419,-275.24532193,0.00024542,2]
[388972810,1759552238428,-325.92399859,0.00024542,2]
[388972811,1759552238437,-166.0,0.00024542,2]
[388972812,1759552238447,-545.19450403,0.00024542,2]
[388972813,1759552238456,-1564.3,0.00024547,10]
[388972814,1759552238465,-203.57214408,0.00024556,2]
[388972815,1759552238475,-28426.28323615,0.00024557,2]
[388972816,1759552238494,-341573.71676385,0.00024557,2]
[388972817,1759552238503,-500.0,0.00024557,5]
[388972818,1759552238513,-176.49584853,0.00024557,2]
[388972819,1759552238522,-913.00751705,0.00024557,2]
[388972820,1759552238532,-277.26491631,0.00024573,2]
[388972821,1759552238542,-500.0,0.00024573,2]
[388972822,1759552238551,-500.0,0.00024573,2]
[388972823,1759552238560,-500.0,0.00024573,2]
[388972824,1759552238569,-1393.37,0.000246,2]
[388972825,1759552238579,-151.0,0.000246,9]
[388972826,1759552238588,-151.0,0.000246,6]
[388972827,1759552238597,-151.0,0.000246,8]
[388972828,1759552238607,-151.0,0.000246,7]
[388972829,1759552238616,-856.14097865,0.00024629,2]
[388972830,1759552238625,-504.30773995,0.00024646,2]
[388972831,1759552238634,-500.00983773,0.00024657,9]
[388972832,1759552238644,-485.57645482,0.00024657,9]
[388972833,1759552238653,-500.0,0.00024657,9]
[388972834,1759552238662,-500.0,0.00024657,9]
[388972835,1759552238672,-500.0,0.00024657,9]
[388972836,1759552238681,-547.2,0.00024657,9]
[388972837,1759552238690,-500.0,0.00024657,9]
[388972838,1759552238700,-500.0,0.00024657,2]
[388972839,1759552238709,-500.0,0.00024657,2]
[388972840,1759552238718,-500.0,0.00024657,2]
[388972841,1759552238728,-500.0,0.00024657,2]
[388972842,1759552238738,-501.59873188,0.00024657,2]
[388972843,1759552238747,-500.0,0.00024657,9]
[388972844,1759552238756,-500.0,0.00024657,9]
[388972845,1759552238766,-500.0,0.00024657,9]
[388972846,1759552238775,-500.0,0.00024657,9]
[388972847,1759552238786,-500.0,0.00024657,9]
[388972848,1759552238795,-506.37,0.00024657,9]
[388972849,1759552238804,-1324.56,0.00024657,9]
[388972850,1759552238814,-500.0,0.00024657,9]
[388972851,1759552238823,-500.0,0.00024657,9]
[388972852,1759552238833,-500.0,0.00024657,9]
[388972853,1759552238842,-500.0,0.00024657,9]
[388972854,1759552238851,-500.0,0.00024657,9]
[388972855,1759552238860,-500.0,0.00024657,9]
[388972856,1759552238870,-500.0,0.00024657,9]
[388972857,1759552238880,-500.0,0.00024657,9]
[388972858,1759552238890,-534.21,0.00024657,9]
[388972859,1759552238900,-500.0,0.00024657,9]
[388972860,1759552238909,-500.0,0.00024657,9]
[388972861,1759552238918,-500.0,0.00024657,9]
[388972862,1759552238928,-500.0,0.00024657,9]
[388972863,1759552238937,-500.0,0.00024657,9]
[388972864,1759552238946,-500.0,0.00024657,9]
[388972865,1759552238955,-500.0,0.00024657,9]
[388972866,1759552238965,-500.0,0.00024657,9]
[388972867,1759552238974,-566.53909547,0.00024657,9]
[388972868,1759552238983,-500.0,0.00024657,9]
[388972869,1759552238992,-500.0,0.00024657,9]
[388972870,1759552239002,-500.0,0.00024657,9]
[388972871,1759552239011,-500.0,0.00024657,9]
[388972872,1759552239021,-500.0,0.00024657,9]
[388972873,1759552239031,-835.57,0.00024657,9]
[388972874,1759552239040,-500.0,0.00024657,9]
[388972875,1759552239050,-500.0,0.00024657,9]
[388972876,1759552239060,-471.05232571,0.00024657,9]
[388972877,1759552239069,-500.0,0.00024657,9]
[388972878,1759552239083,-500.0,0.00024657,9]
[388972879,1759552239092,-500.0,0.00024657,9]
[388972880,1759552239102,-500.0,0.00024657,9]
[388972881,1759552239111,-500.0,0.00024657,9]
[388972882,1759552239120,-500.0,0.00024657,9]
[388972883,1759552239129,-500.0,0.00024657,9]
[388972884,1759552239138,-10958.0,0.00024657,9]
[388972885,1759552239147,-500.0,0.00024657,9]
[388972886,1759552239156,-500.0,0.00024657,9]
[388972887,1759552239166,-374.23650633,0.00024657,9]
[388972888,1759552239175,-500.0,0.00024657,9]
[388972889,1759552239184,-665.59,0.00024657,9]
[388972890,1759552239193,-500.0,0.00024657,9]
[388972891,1759552239203,-500.0,0.00024657,9]
[388972892,1759552239213,-500.0,0.00024657,9]
[388972893,1759552239222,-784.22,0.00024657,9]
[388972894,1759552239231,-500.0,0.00024657,9]
[388972895,1759552239240,-500.0,0.00024657,9]
[388972896,1759552239252,-500.0,0.00024657,9]
[388972897,1759552239261,-500.0,0.00024657,9]
[388972898,1759552239270,-500.0,0.00024657,9]
[388972899,1759552239280,-500.0,0.00024657,9]
[388972900,1759552239289,-500.0,0.00024657,9]
[388972901,1759552239298,-500.0,0.00024657,9]
[388972902,1759552239307,-500.0,0.00024657,9]
[388972903,1759552239316,-1605.64,0.00024657,9]
[388972904,1759552239325,-1064.74,0.00024657,9]
[388972905,1759552239335,-500.0,0.00024657,9]
[388972906,1759552239344,-500.0,0.00024657,9]
[388972907,1759552239353,-500.0,0.00024657,9]
[388972908,1759552239363,-500.0,0.00024657,9]
[388972909,1759552239372,-500.0,0.00024657,9]
[388972910,1759552239381,-500.0,0.00024657,9]
[388972911,1759552239391,-557.64,0.00024657,9]
[388972912,1759552239406,-557.64,0.00024657,9]
[388972913,1759552239416,-557.64,0.00024657,9]
[388972914,1759552239426,-500.0,0.00024657,9]
[388972915,1759552239435,-557.64,0.00024657,9]
[388972916,1759552239444,-557.64,0.00024657,9]
[388972917,1759552239453,-557.64,0.00024657,9]
[388972918,1759552239463,-557.64,0.00024657,9]
[388972919,1759552239473,-557.64,0.00024657,9]
[388972920,1759552239482,-557.64,0.00024657,9]
[388972921,1759552239493,-557.64,0.00024657,9]
[388972922,1759552239503,-557.64,0.00024657,9]
[388972923,1759552239512,-557.64,0.00024657,9]
[388972924,1759552239521,-557.64,0.00024657,9]
[388972925,1759552239530,-557.64,0.00024657,9]
[388972926,1759552239539,-557.64,0.00024657,9]
[388972927,1759552239548,-6754.91,0.00024657,9]
[388972928,1759552239558,-557.64,0.00024657,9]
[388972929,1759552239567,-500.0,0.00024657,9]
[388972930,1759552239576,-483.31641846,0.00024657,9]
[388972931,1759552239586,-557.64,0.00024657,9]
[388972932,1759552239595,-557.64,0.00024657,9]
[388972933,1759552239604,-557.64,0.00024657,9]
[388972934,1759552239613,-557.64,0.00024657,9]
[388972935,1759552239623,-500.0,0.00024657,9]
[388972936,1759552239631,-484.46115289,0.00024657,9]
[388972937,1759552239640,-557.64,0.00024657,9]
[388972938,1759552239650,-557.64,0.00024657,9]
[388972939,1759552239659,-557.64,0.00024657,9]
[388972940,1759552239668,-500.0,0.00024657,9]
[388972941,1759552239677,-557.87460596,0.00024657,9]
[388972942,1759552239686,-500.0,0.00024657,9]
[388972943,1759552239695,-500.0,0.00024657,9]
[388972944,1759552239713,-500.0,0.00024657,9]
[388972945,1759552239722,-500.0,0.00024657,9]
[388972946,1759552239731,-500.0,0.00024657,9]
[388972947,1759552239740,-500.0,0.00024657,9]
[388972948,1759552239749,-500.0,0.00024657,9]
[388972949,1759552239758,-500.0,0.00024657,9]
[388972950,1759552239767,-500.0,0.00024657,9]
[388972951,1759552239777,-500.0,0.00024657,9]
[388972952,1759552239787,-744.02,0.00024657,9]
[388972953,1759552239795,-500.0,0.00024657,9]
[388972954,1759552239805,-500.0,0.00024657,9]
[388972955,1759552239815,-1696.76,0.00024657,9]
[388972956,1759552239824,-500.0,0.00024657,9]
[388972958,1759552239833,-500.0,0.00024657,9]
[388972959,1759552239843,-500.0,0.00024657,9]
[388972961,1759552239852,-500.0,0.00024657,9]
[388972962,1759552239861,-500.0,0.00024657,9]
[388972964,1759552239871,-500.0,0.00024657,9]
[388972965,1759552239881,-711.43,0.00024657,9]
[388972967,1759552239890,-500.0,0.00024657,9]
[388972968,1759552239900,-500.0,0.00024657,9]
[388972969,1759552239909,-500.0,0.00024657,9]
[388972970,1759552239919,-500.0,0.00024657,9]
[388972971,1759552239930,-482.48001115,0.00024657,9]
[388972972,1759552239940,-209.81979494,0.00024657,9]
[388972973,1759552239950,-1890.27,0.00024657,9]
[388972974,1759552239959,-1890.27,0.00024657,9]
[388972975,1759552239968,-482.00971322,0.00024657,7]
[388972976,1759552239978,-1890.27,0.00024657,9]
[388972977,1759552239988,-500.0,0.00024657,9]
[388972978,1759552239997,-1890.27,0.00024657,9]
[388972979,1759552240006,-1890.27,0.00024657,9]
[388972980,1759552240016,-500.0,0.00024657,9]
[388972981,1759552240025,-1890.27,0.00024657,9]
[388972982,1759552240036,-1890.27,0.00024657,9]
[388972983,1759552240046,-1890.27,0.00024657,9]
[388972984,1759552240056,-1890.27,0.00024657,9]
[388972985,1759552240065,-1890.27,0.00024657,9]
[388972986,1759552240076,-1890.27,0.00024657,9]
[388972987,1759552240086,-1890.27,0.00024657,9]
[388972988,1759552240096,-1890.27,0.00024657,9]
[388972989,1759552240105,-1890.27,0.00024657,9]
[388972990,1759552240115,-1890.27,0.00024657,9]
[388972991,1759552240124,-596.87,0.00024657,9]
[388972992,1759552240134,-1890.27,0.00024657,9]
[388972993,1759552240145,-935.62,0.00024657,9]
[388972994,1759552240155,-1890.27,0.00024657,9]
[388972995,1759552240164,-500.0,0.00024657,9]
[388972996,1759552240173,-1890.27,0.00024657,9]
[388972997,1759552240183,-500.0,0.00024657,9]
[388972998,1759552240192,-1890.27,0.00024657,9]
[388972999,1759552240201,-1890.27,0.00024657,9]
[388973000,1759552240210,-1890.27,0.00024657,9]
[388973001,1759552240219,-1890.27,0.00024657,9]
[388973002,1759552240228,-1890.27,0.00024657,9]
[388973003,1759552240238,-1890.4382985,0.00024657,9]
[388973004,1759552240247,-486.02722392,0.00024657,9]
[388973005,1759552240256,-500.0,0.00024657,9]
[388973006,1759552240266,-851.28,0.00024657,9]
[388973007,1759552240275,-337.38857384,0.00024657,9]
[388973008,1759552240285,-500.0,0.00024657,9]
[388973009,1759552240295,-775.34,0.00024657,9]
[388973010,1759552240304,-500.0,0.00024657,9]
[388973011,1759552240313,-500.0,0.00024657,9]
[388973012,1759552240323,-500.0,0.00024657,9]
[388973013,1759552240332,-500.0,0.00024657,9]
[388973014,1759552240341,-500.0,0.00024657,9]
[388973015,1759552240350,-520.0,0.00024657,3]
[388973016,1759552240360,-500.0,0.00024657,9]
[388973017,1759552240369,-500.0,0.00024657,9]
[388973018,1759552240379,-500.0,0.00024657,9]
[388973019,1759552240388,-500.0,0.00024657,9]
[388973020,1759552240398,-1119.79,0.00024657,9]
[388973021,1759552240407,-500.0,0.00024657,9]
[388973022,1759552240416,-500.0,0.00024657,9]
[388973023,1759552240425,-553.09,0.00024657,9]
[388973024,1759552240434,-735.43,0.00024657,9]
[388973025,1759552240443,-500.0,0.00024657,9]
[388973026,1759552240452,-534.1969581,0.00024657,9]
[388973027,1759552240461,-465.01439612,0.00024657,9]
[388973028,1759552240470,-500.0,0.00024657,9]
[388973029,1759552240479,-500.0,0.00024657,9]
[388973030,1759552240489,-500.0,0.00024657,9]
[388973031,1759552240498,-500.0,0.00024657,9]
[388973032,1759552240507,-483.10218923,0.00024657,9]
[388973033,1759552240516,-500.0,0.00024657,9]
[388973034,1759552240525,-829.33,0.00024657,9]
[388973035,1759552240535,-780.57,0.00024657,9]
[388973036,1759552240545,-500.0,0.00024657,9]
[388973037,1759552240554,-482.86298677,0.00024657,9]
[388973038,1759552240563,-241.57,0.00024657,9]
[388973039,1759552240572,-706.77,0.00024657,9]
[388973040,1759552240580,-500.0,0.00024657,9]
[388973041,1759552240589,-500.0,0.00024657,9]
[388973042,1759552240598,-500.0,0.00024657,9]
[388973043,1759552240607,-500.0,0.00024657,9]
[388973044,1759552240617,-500.0,0.00024657,9]
[388973045,1759552240626,-637.17,0.00024657,9]
[388973046,1759552240635,-500.0,0.00024657,9]
[388973047,1759552240644,-500.0,0.00024657,9]
[388973048,1759552240653,-490.15709761,0.00024657,9]
[388973049,1759552240662,-779.32,0.00024657,9]
[388973050,1759552240671,-500.0,0.00024657,9]
[388973051,1759552240680,-500.0,0.00024657,9]
[388973052,1759552240689,-500.0,0.00024657,9]
[388973053,1759552240698,-500.0,0.00024657,9]
[388973054,1759552240707,-500.0,0.00024657,9]
[388973055,1759552240716,-500.0,0.00024657,9]
[388973056,1759552240726,-500.0,0.00024657,9]
[388973057,1759552240735,-1027.39,0.00024657,9]
[388973058,1759552240744,-760.18,0.00024657,9]
[388973059,1759552240753,-500.0,0.00024657,9]
[388973060,1759552240762,-500.0,0.00024657,9]
[388973061,1759552240771,-500.0,0.00024657,9]
[388973062,1759552240782,-500.0,0.00024657,9]
[388973063,1759552240792,-1038.2,0.00024657,9]
[388973064,1759552240801,-3037.25,0.00024657,9]
[388973065,1759552240810,-500.0,0.00024657,9]
[388973066,1759552240819,-618.42,0.00024657,9]
[388973067,1759552240828,-316.91375993,0.00024657,9]
[388973068,1759552240837,-500.0,0.00024657,9]
[388973069,1759552240846,-483.70147218,0.00024657,9]
[388973070,1759552240855,-500.0,0.00024657,9]
[388973071,1759552240864,-500.0,0.00024657,9]
[388973072,1759552240873,-500.0,0.00024657,9]
[388973073,1759552240882,-487.5814609,0.00024657,9]
[388973074,1759552240891,-500.0,0.00024657,9]
[388973075,1759552240901,-500.0,0.00024657,9]
[388973076,1759552240910,-500.0,0.00024657,9]
[388973077,1759552240920,-500.0,0.00024657,9]
[388973078,1759552240929,-500.0,0.00024657,9]
[388973079,1759552240938,-500.0,0.00024657,9]
[388973080,1759552240948,-382.16840639,0.00024657,9]
[388973081,1759552240957,-500.0,0.00024657,9]
[388973082,1759552240966,-500.0,0.00024657,9]
[388973084,1759552240976,-500.83353063,0.00024657,9]
[388973086,1759552240985,-500.0,0.00024657,9]
[388973087,1759552240995,-500.0,0.00024657,9]
[388973089,1759552241004,-500.0,0.00024657,9]
[388973090,1759552241013,-1680.35,0.00024657,9]
[388973091,1759552241022,-500.0,0.00024657,9]
[388973092,1759552241032,-500.0,0.00024657,9]
[388973093,1759552241041,-500.0,0.00024657,9]
[388973094,1759552241050,-500.0,0.00024657,9]
[388973096,1759552241059,-500.0,0.00024657,9]
[388973098,1759552241068,-500.0,0.00024657,9]
[388973100,1759552241081,-500.0,0.00024657,9]
[388973102,1759552241090,-500.0,0.00024657,9]
[388973104,1759552241099,-500.0,0.00024657,9]
[388973106,1759552241109,-500.0,0.00024657,9]
[388973108,1759552241118,-500.0,0.00024657,9]
[388973110,1759552241127,-500.0,0.00024657,9]
[388973112,1759552241136,-500.0,0.00024657,9]
[388973114,1759552241146,-500.0,0.00024657,9]
[388973116,1759552241155,-500.0,0.00024657,9]
[388973118,1759552241165,-500.0,0.00024657,9]
[388973121,1759552241174,-500.0,0.00024657,9]
[388973123,1759552241184,-500.0,0.00024657,9]
[388973125,1759552241193,-500.0,0.00024657,9]
[388973127,1759552241202,-500.0,0.00024657,9]
[388973129,1759552241211,-500.0,0.00024657,9]
[388973130,1759552241222,-500.0,0.00024657,9]
[388973132,1759552241232,-500.0,0.00024657,9]
[388973134,1759552241241,-500.0,0.00024657,9]
[388973136,1759552241251,-500.0,0.00024657,9]
[388973139,1759552241262,-500.0,0.00024657,9]
[388973141,1759552241272,-487.37845422,0.00024657,9]
[388973165,1759552241477,-500.0,0.00024657,9]
[388973167,1759552241487,-500.0,0.00024657,9]
[388973169,1759552241496,-500.0,0.00024657,9]
[388973171,1759552241505,-500.0,0.00024657,9]
[388973173,1759552241514,-595.15215168,0.00024657,9]
[388973175,1759552241523,-500.0,0.00024657,9]
[388973177,1759552241532,-500.0,0.00024657,9]
[388973179,1759552241543,-500.0,0.00024657,9]
[388973181,1759552241552,-500.0,0.00024657,9]
[388973183,1759552241560,-500.0,0.00024657,9]
[388973185,1759552241570,-500.0,0.00024657,9]
[388973187,1759552241580,-500.0,0.00024657,9]
[388973189,1759552241589,-500.0,0.00024657,9]
[388973191,1759552241598,-599.93,0.00024657,9]
[388973193,1759552241607,-500.0,0.00024657,9]
[388973195,1759552241616,-629.83,0.00024657,9]
[388973197,1759552241625,-500.0,0.00024657,9]
[388973199,1759552241634,-608.40867416,0.00024657,9]
[388973201,1759552241643,-500.0,0.00024657,9]
[388973203,1759552241652,-500.0,0.00024657,9]
[388973205,1759552241662,-287.33092903,0.00024657,9]
[388973207,1759552241671,-500.0,0.00024657,9]
[388973209,1759552241680,-543.44,0.00024657,9]
[388973211,1759552241690,-500.0,0.00024657,9]
[388973213,1759552241699,-500.0,0.00024657,9]
[388973215,1759552241708,-500.0,0.00024657,9]
[388973217,1759552241719,-500.0,0.00024657,9]
[388973219,1759552241728,-735.17,0.00024657,9]
[388973221,1759552241737,-1524.89,0.00024657,9]
[388973223,1759552241746,-500.0,0.00024657,9]
[388973225,1759552241755,-500.0,0.00024657,9]
[388973227,1759552241764,-500.0,0.00024657,9]
[388973229,1759552241774,-500.0,0.00024657,9]
[388973231,1759552241784,-500.0,0.00024657,9]
[388973233,1759552241793,-500.0,0.00024657,9]
[388973235,1759552241803,-500.0,0.00024657,9]
[388973237,1759552241812,-500.0,0.00024657,9]
[388973239,1759552241821,-500.0,0.00024657,9]
[388973241,1759552241830,-500.0,0.00024657,9]
[388973243,1759552241839,-500.0,0.00024657,9]
[388973245,1759552241848,-151.0,0.00024657,7]
[388973247,1759552241858,-151.0,0.00024657,7]
[388973249,1759552241867,-151.0,0.00024657,7]
[388973251,1759552241876,-946.45,0.00024657,9]
[388973253,1759552241886,-500.0,0.00024657,9]
[388973255,1759552241895,-534.54,0.00024657,9]
[388973257,1759552241904,-500.0,0.00024657,9]
[388973259,1759552241913,-1422.55,0.00024657,9]
[388973261,1759552241922,-151.0,0.00024657,7]
[388973263,1759552241932,-500.0,0.00024657,9]
[388973265,1759552241941,-500.0,0.00024657,9]
[388973267,1759552241951,-500.0,0.00024657,9]
[388973269,1759552241960,-500.0,0.00024657,9]
[388973271,1759552241969,-500.0,0.00024657,9]
[388973273,1759552241980,-500.0,0.00024657,9]
[388973275,1759552241989,-500.0,0.00024657,9]
[388973277,1759552241999,-500.0,0.00024657,9]
[388973279,1759552242009,-500.0,0.00024657,9]
[388973281,1759552242018,-500.0,0.00024657,9]
[388973283,1759552242028,-641.68,0.00024657,9]
[388973285,1759552242037,-151.0,0.00024657,7]
[388973287,1759552242047,-402.41520987,0.00024657,9]
[388973289,1759552242056,-500.0,0.00024657,9]
[388973291,1759552242067,-500.0,0.00024657,9]
[388973293,1759552242076,-151.0,0.00024657,7]
[388973294,1759552242085,-500.0,0.00024657,9]
[388973296,1759552242095,-4209.87,0.00024657,9]
[388973297,1759552242105,-500.0,0.00024657,9]
[388973298,1759552242115,-500.0,0.00024657,2]
[388973299,1759552242124,-657.32,0.00024657,9]
[388973300,1759552242134,-500.0,0.00024657,9]
[388973301,1759552242143,-500.0,0.00024657,9]
[388973302,1759552242152,-532.62,0.00024657,9]
[388973303,1759552242162,-500.0,0.00024657,9]
[388973304,1759552242172,-500.0,0.00024657,9]
[388973305,1759552242181,-571.79046969,0.00024657,9]
[388973306,1759552242191,-1204.29,0.00024657,9]
[388973307,1759552242200,-500.0,0.00024657,9]
[388973308,1759552242210,-500.0,0.00024657,9]
[388973309,1759552242221,-151.0,0.00024657,7]
[388973310,1759552242231,-500.0,0.00024657,9]
[388973311,1759552242240,-500.0,0.00024657,9]
[388973312,1759552242250,-172.483531,0.00024657,7]
[388973313,1759552242260,-500.0,0.00024657,9]
[388973314,1759552242269,-500.0,0.00024657,9]
[388973315,1759552242279,-500.0,0.00024657,9]
[388973316,1759552242289,-500.0,0.00024657,9]
[388973317,1759552242299,-500.0,0.00024657,9]
[388973318,1759552242308,-510.59,0.00024657,9]
[388973319,1759552242318,-500.0,0.00024657,9]
[388973320,1759552242328,-500.0,0.00024657,9]
[388973321,1759552242345,-500.0,0.00024657,9]
[388973322,1759552242364,-500.0,0.00024657,9]
[388973323,1759552242373,-677.47,0.00024657,9]
[388973324,1759552242383,-151.0,0.00024657,7]
[388973325,1759552242392,-157.455924,0.00024657,7]
[388973326,1759552242402,-227.584072,0.00024657,7]
[388973327,1759552242411,-157.455924,0.00024657,7]
[388973328,1759552242419,-611.77,0.00024657,9]
[388973329,1759552242429,-500.0,0.00024657,9]
[388973330,1759552242438,-151.586398,0.00024657,7]
[388973331,1759552242447,-157.455924,0.00024657,7]
[388973332,1759552242457,-500.0,0.00024657,9]
[388973333,1759552242466,-157.455924,0.00024657,7]
[388973334,1759552242476,-500.0,0.00024657,9]
[388973335,1759552242485,-500.0,0.00024657,9]
[388973336,1759552242494,-895.86,0.00024657,9]
[388973337,1759552242503,-500.0,0.00024657,9]
[388973338,1759552242513,-457.05787363,0.00024657,9]
[388973339,1759552242522,-668.32,0.00024657,9]
[388973340,1759552242531,-500.0,0.00024657,9]
[388973341,1759552242541,-518.37,0.00024657,9]
[388973342,1759552242550,-500.0,0.00024657,9]
[388973343,1759552242559,-151.0,0.00024657,7]
[388973344,1759552242570,-500.0,0.00024657,9]
[388973345,1759552242580,-500.0,0.00024657,9]
[388973346,1759552242589,-500.0,0.00024657,9]
[388973347,1759552242598,-500.0,0.00024657,9]
[388973348,1759552242607,-1526.72,0.00024657,9]
[388973349,1759552242616,-790.39,0.00024657,9]
[388973350,1759552242625,-1906.99,0.00024657,9]
[388973351,1759552242635,-1000.0,0.00024657,9]
[388973352,1759552242644,-500.0,0.00024657,9]
[388973353,1759552242654,-514.89,0.00024657,9]
[388973354,1759552242664,-500.0,0.00024657,9]
[388973355,1759552242673,-500.0,0.00024657,9]
[388973356,1759552242682,-583.58,0.00024657,9]
[388973357,1759552242691,-500.0,0.00024657,9]
[388973358,1759552242700,-500.0,0.00024657,9]
[388973359,1759552242710,-500.0,0.00024657,9]
[388973360,1759552242719,-500.0,0.00024657,9]
[388973361,1759552242728,-965.58,0.00024657,9]
[388973362,1759552242738,-500.0,0.00024657,9]
[388973363,1759552242747,-500.0,0.00024657,9]
[388973364,1759552242756,-500.0,0.00024657,9]
[388973365,1759552242766,-500.0,0.00024657,9]
[388973366,1759552242775,-1198.5,0.00024657,9]
[388973367,1759552242785,-500.0,0.00024657,9]
[388973368,1759552242795,-1223.62,0.00024657,9]
[388973369,1759552242805,-500.0,0.00024657,9]
[388973370,1759552242814,-500.0,0.00024657,9]
[388973371,1759552242824,-500.0,0.00024657,9]
[388973372,1759552242833,-500.0,0.00024657,9]
[388973373,1759552242843,-500.0,0.00024657,9]
[388973374,1759552242853,-151.0,0.00024657,7]
[388973375,1759552242862,-500.0,0.00024657,9]
[388973376,1759552242871,-500.0,0.00024657,9]
[388973377,1759552242881,-1455.18,0.00024657,9]
[388973378,1759552242890,-534.17,0.00024657,9]
[388973379,1759552242900,-500.0,0.00024657,9]
[388973380,1759552242909,-151.0,0.00024657,7]
[388973381,1759552242919,-152.12701,0.00024657,7]
[388973382,1759552242928,-500.0,0.00024657,9]
[388973383,1759552242937,-500.0,0.00024657,9]
[388973384,1759552242947,-500.0,0.00024657,9]
[388973385,1759552242956,-151.0,0.00024657,7]
[388973386,1759552242966,-151.0,0.00024657,7]
[388973387,1759552242976,-847.75,0.00024657,9]
[388973388,1759552242986,-500.0,0.00024657,9]
[388973389,1759552242996,-500.0,0.00024657,9]
[388973391,1759552243005,-151.0,0.00024657,7]
[388973394,1759552243014,-500.0,0.00024657,9]
[388973396,1759552243024,-500.0,0.00024657,9]
[388973397,1759552243033,-500.0,0.00024657,9]
[388973398,1759552243043,-500.0,0.00024657,9]
[388973399,1759552243052,-861.7,0.00024657,9]
[388973400,1759552243061,-500.0,0.00024657,9]
[388973403,1759552243072,-500.0,0.00024657,9]
[388973404,1759552243085,-500.0,0.00024657,9]
[388973405,1759552243095,-1727.25,0.00024657,9]
[388973406,1759552243104,-1008.47,0.00024657,9]